lending/lending_fUSD_20240128
["ID","MTS","AMOUNT","RATE_DAILY","PERIOD"]
[312924321,1706462060973,-150.30324067,0.00052893,60]
[312924322,1706462060996,-154.21763163,0.000529,60]
[312924323,1706462061018,-157.04067161,0.00052908,60]
[312924324,1706462061040,-150.50894754,0.00052915,60]
[312924325,1706462061062,-152.82946365,0.0005292,60]
[312924326,1706462061085,-498.39441487,0.00052936,60]
[312924327,1706462061107,-155.10176526,0.00052943,60]
[312924328,1706462061129,-150.30324068,0.00052954,60]
[312924329,1706462061152,-498.39441487,0.00052958,60]
[312924330,1706462061175,-154.21763163,0.00052961,60]
[312924331,1706462061197,-154.21763163,0.00052991,60]
[312924332,1706462061221,-150.13702332,0.00052996,60]
[312924333,1706462061243,-150.50894754,0.00053008,60]
[312924334,1706462061265,-154.21763163,0.00053009,60]
[312924335,1706462061288,-499.34579736,0.00053009,60]
[312924336,1706462061310,-498.39441487,0.00053011,60]
[312924337,1706462061333,-499.34579736,0.0005302,60]
[312924338,1706462061356,-150.13702332,0.0005303,60]
[312924339,1706462061378,-158.52895406,0.00053041,60]
[312924340,1706462061400,-155.10176526,0.00053046,60]
[312924341,1706462061422,-155.46597404,0.0005306,60]
[312924342,1706462061445,-498.39441487,0.00053079,60]
[312924343,1706462061468,-499.34579736,0.00053103,60]
[312924344,1706462061490,-157.72167215,0.00053104,60]
[312924345,1706462061513,-498.39441487,0.00053134,60]
[312924346,1706462061538,-154.21763163,0.00053141,60]
[312924347,1706462061560,-150.13702332,0.00053144,60]
[312924348,1706462061584,-500.0,0.0005315,31]
[312924349,1706462061607,-500.0,0.0005315,31]
[312924350,1706462061630,-435.17452136,0.0005315,31]
[312924351,1706462061653,-500.0,0.0005315,31]
[312924352,1706462061676,-500.0,0.0005315,31]
[312924353,1706462061701,-566.96,0.0005315,31]
[312924354,1706462061724,-177.35,0.0005315,31]
[312924355,1706462061748,-500.0,0.0005315,31]
[312924356,1706462061771,-500.0,0.0005315,31]
[312924357,1706462061795,-423.36,0.0005315,31]
[312924358,1706462061818,-500.0,0.0005315,31]
[312924359,1706462061841,-500.0,0.0005315,31]
[312924360,1706462061864,-500.0,0.0005315,31]
[312924361,1706462061888,-500.0,0.0005315,31]
[312924362,1706462062040,-726.11,0.0005315,31]
[312924363,1706462062063,-204.77347485,0.0005315,31]
[312924364,1706462062086,-462.22,0.0005315,31]
[312924365,1706462062108,-500.0,0.0005315,31]
[312924366,1706462062131,-500.0,0.0005315,31]
[312924367,1706462062152,-500.0,0.0005315,31]
[312924368,1706462062174,-500.0,0.0005315,31]
[312924369,1706462062196,-500.0,0.0005315,31]
[312924370,1706462062219,-537.89,0.0005315,31]
[312924371,1706462062241,-500.0,0.0005315,31]
[312924372,1706462062264,-500.0,0.0005315,31]
[312924373,1706462062286,-500.0,0.0005315,31]
[312924374,1706462062308,-1530.49,0.0005315,31]
[312924375,1706462062331,-492.94,0.0005315,31]
[312924376,1706462062354,-512.22,0.0005315,31]
[312924377,1706462062376,-727.36,0.0005315,31]
[312924378,1706462062398,-500.0,0.0005315,31]
[312924379,1706462062422,-1705.74,0.0005315,31]
[312924380,1706462062445,-500.0,0.0005315,31]
[312924381,1706462062468,-500.0,0.0005315,31]
[312924382,1706462062490,-500.0,0.0005315,31]
[312924383,1706462062512,-500.0,0.0005315,31]
[312924384,1706462062536,-556.29,0.0005315,31]
[312924385,1706462062558,-500.0,0.0005315,31]
[312924386,1706462062580,-305.7318439,0.0005315,31]
[312924387,1706462062602,-774.07,0.0005315,31]
[312924388,1706462062625,-500.0,0.0005315,31]
[312924389,1706462062649,-500.0,0.0005315,31]
[312924390,1706462062673,-752.54,0.0005315,31]
[312924391,1706462062707,-500.0,0.0005315,31]
[312924392,1706462062733,-500.0,0.0005315,31]
[312924393,1706462062758,-228.21506502,0.0005315,31]
[312924394,1706462062782,-500.0,0.0005315,31]
[312924395,1706462062807,-623.18,0.0005315,31]
[312924396,1706462062832,-332.08487153,0.0005315,31]
[312924397,1706462062856,-500.0,0.0005315,31]
[312924398,1706462062879,-427.88,0.0005315,31]
[312924399,1706462062902,-500.0,0.0005315,31]
[312924400,1706462062926,-500.0,0.0005315,31]
[312924401,1706462062955,-174.36987856,0.0005315,31]
[312924402,1706462062979,-500.0,0.0005315,31]
[312924403,1706462063003,-886.3,0.0005315,31]
[312924404,1706462063027,-500.0,0.0005315,31]
[312924405,1706462063051,-1372.4,0.0005315,31]
[312924406,1706462063073,-500.0,0.0005315,31]
[312924407,1706462063096,-500.0,0.0005315,31]
[312924408,1706462063119,-500.0,0.0005315,31]
[312924409,1706462063142,-500.0,0.0005315,31]
[312924410,1706462063164,-500.0,0.0005315,31]
[312924411,1706462063187,-500.0,0.0005315,31]
[312924412,1706462063211,-500.0,0.0005315,31]
[312924413,1706462063235,-602.66,0.0005315,31]
[312924414,1706462063259,-500.0,0.0005315,31]
[312924415,1706462063283,-500.0,0.0005315,31]
[312924416,1706462063307,-617.86299315,0.0005315,31]
[312924417,1706462063330,-500.0,0.0005315,31]
[312924418,1706462063353,-566.54,0.0005315,31]
[312924419,1706462063376,-503.36,0.0005315,31]
[312924420,1706462063400,-500.0,0.0005315,31]
[312924421,1706462063423,-613.72,0.0005315,31]
[312924422,1706462063449,-500.0,0.0005315,31]
[312924423,1706462063473,-500.0,0.0005315,31]
[312924424,1706462063495,-500.0,0.0005315,31]
[312924425,1706462063520,-500.0,0.0005315,31]
[312924426,1706462063550,-500.0,0.0005315,31]
[312924427,1706462063573,-500.0,0.0005315,31]
[312924428,1706462063596,-500.0,0.0005315,31]
[312924429,1706462063622,-500.0,0.0005315,31]
[312924430,1706462063645,-500.0,0.0005315,31]
[312924431,1706462063668,-500.0,0.0005315,31]
[312924432,1706462063696,-500.0,0.0005315,31]
[312924433,1706462063719,-500.0,0.0005315,31]
[312924434,1706462063743,-500.0,0.0005315,31]
[312924435,1706462063767,-500.0,0.0005315,31]
[312924436,1706462063790,-500.0,0.0005315,31]
[312924437,1706462063813,-500.0,0.0005315,31]
[312924438,1706462063837,-1197.93,0.0005315,31]
[312924439,1706462063862,-500.0,0.0005315,31]
[312924440,1706462063885,-960.3,0.0005315,31]
[312924441,1706462063909,-500.0,0.0005315,31]
[312924442,1706462063932,-500.0,0.0005315,31]
[312924443,1706462063956,-500.0,0.0005315,31]
[312924444,1706462063979,-500.0,0.0005315,31]
[312924445,1706462064001,-500.0,0.0005315,31]
[312924446,1706462064025,-500.0,0.0005315,31]
[312924447,1706462064049,-567.44,0.0005315,31]
[312924448,1706462064074,-463.02,0.0005315,31]
[312924449,1706462064097,-528.63,0.0005315,31]
[312924450,1706462064120,-3414.46,0.0005315,31]
[312924451,1706462064143,-500.0,0.0005315,31]
[312924452,1706462064166,-500.0,0.0005315,31]
[312924453,1706462064189,-500.0,0.0005315,31]
[312924454,1706462064212,-500.0,0.0005315,31]
[312924455,1706462064237,-500.0,0.0005315,31]
[312924456,1706462064263,-500.0,0.0005315,31]
[312924457,1706462064285,-1035.76,0.0005315,31]
[312924458,1706462064308,-500.0,0.0005315,31]
[312924459,1706462064333,-520.26,0.0005315,31]
[312924460,1706462064356,-500.0,0.0005315,31]
[312924461,1706462064380,-500.0,0.0005315,31]
[312924462,1706462064403,-500.0,0.0005315,31]
[312924463,1706462064427,-500.0,0.0005315,31]
[312924464,1706462064450,-500.0,0.0005315,31]
[312924465,1706462064477,-500.0,0.0005315,31]
[312924466,1706462064683,-616.38646119,0.0005315,31]
[312924467,1706462064708,-765.11,0.0005315,31]
[312924468,1706462064733,-520.83,0.0005315,31]
[312924469,1706462064756,-500.0,0.0005315,31]
[312924470,1706462064779,-500.0,0.0005315,31]
[312924471,1706462064803,-500.0,0.0005315,31]
[312924472,1706462064827,-615.26,0.0005315,31]
[312924473,1706462064850,-500.0,0.0005315,31]
[312924474,1706462064873,-266.38537201,0.0005315,31]
[312924475,1706462064896,-500.0,0.0005315,31]
[312924476,1706462064919,-500.0,0.0005315,31]
[312924477,1706462064941,-2420.7,0.0005315,31]
[312924478,1706462064964,-500.0,0.0005315,31]
[312924479,1706462064987,-691.34,0.0005315,31]
[312924480,1706462065010,-599.2553442,0.0005315,31]
[312924481,1706462065032,-574.24673558,0.0005315,31]
[312924482,1706462065055,-900.36,0.0005315,31]
[312924483,1706462065079,-586.3,0.0005315,31]
[312924484,1706462065101,-7274.65,0.0005315,31]
[312924485,1706462065125,-809.87,0.0005315,31]
[312924486,1706462065147,-500.0,0.0005315,31]
[312924487,1706462065175,-500.0,0.0005315,31]
[312924488,1706462065199,-500.0,0.0005315,31]
[312924489,1706462065222,-150.34028937,0.00053152,60]
[312924490,1706462065245,-158.44565293,0.00053154,60]
[312924491,1706462065268,-499.34579736,0.00053155,60]
[312924492,1706462065291,-498.39441487,0.00053207,60]
[312924493,1706462065314,-154.21763163,0.00053215,60]
[312924494,1706462065336,-206.0,0.0005323,30]
[312924495,1706462065359,-154.21763163,0.00053247,60]
[312924496,1706462065381,-499.34579736,0.00053266,60]
[312924497,1706462065404,-155.46597404,0.00053285,60]
[312924498,1706462065427,-499.34579736,0.00053316,60]
[312924499,1706462065450,-150.34028937,0.0005332,60]
[312924500,1706462065475,-206.0,0.0005333,30]
[312924501,1706462065498,-206.0,0.0005333,30]
[312924502,1706462065521,-150.13702332,0.0005334,60]
[312924503,1706462065546,-150.13702332,0.0005335,60]
[312924504,1706462065570,-498.39441487,0.00053381,60]
[312924505,1706462065594,-155.97455391,0.00053402,60]
[312924506,1706462065620,-168.86088493,0.00053413,60]
[312924507,1706462065647,-500.0,0.00053424,31]
[312924508,1706462065672,-500.0,0.00053424,31]
[312924509,1706462065697,-500.0,0.00053424,31]
[312924510,1706462065721,-500.0,0.00053424,31]
[312924511,1706462065745,-500.0,0.00053424,31]
[312924512,1706462065769,-500.0,0.00053424,31]
[312924513,1706462065792,-335.78391807,0.00053424,31]
[312924514,1706462065815,-500.0,0.00053424,31]
[312924515,1706462065838,-500.0,0.00053424,31]
[312924516,1706462065862,-500.0,0.00053424,31]
[312924517,1706462065886,-726.11,0.00053424,31]
[312924518,1706462065909,-500.0,0.00053424,31]
[312924519,1706462065932,-500.0,0.00053424,31]
[312924520,1706462065956,-500.0,0.00053424,31]
[312924521,1706462065979,-214.75,0.00053424,31]
[312924522,1706462066003,-500.0,0.00053424,31]
[312924523,1706462066028,-537.89,0.00053424,31]
[312924524,1706462066053,-500.0,0.00053424,31]
[312924525,1706462066078,-500.0,0.00053424,31]
[312924526,1706462066103,-500.0,0.00053424,31]
[312924527,1706462066127,-1530.49,0.00053424,31]
[312924528,1706462066153,-727.36,0.00053424,31]
[312924529,1706462066175,-500.0,0.00053424,31]
[312924530,1706462066199,-1705.74,0.00053424,31]
[312924531,1706462066221,-500.0,0.00053424,31]
[312924532,1706462066244,-500.0,0.00053424,31]
[312924533,1706462066268,-500.0,0.00053424,31]
[312924534,1706462066291,-500.0,0.00053424,31]
[312924535,1706462066315,-556.29,0.00053424,31]
[312924536,1706462066341,-500.0,0.00053424,31]
[312924537,1706462066365,-774.07,0.00053424,31]
[312924538,1706462066388,-500.0,0.00053424,31]
[312924539,1706462066412,-500.0,0.00053424,31]
[312924540,1706462066435,-752.54,0.00053424,31]
[312924541,1706462066459,-500.0,0.00053424,31]
[312924542,1706462066481,-151.9,0.00053424,31]
[312924543,1706462066504,-500.0,0.00053424,31]
[312924544,1706462066529,-623.18,0.00053424,31]
[312924545,1706462066553,-500.0,0.00053424,31]
[312924546,1706462066575,-500.0,0.00053424,31]
[312924547,1706462066598,-500.0,0.00053424,31]
[312924548,1706462066622,-500.0,0.00053424,31]
[312924549,1706462066645,-500.0,0.00053424,31]
[312924550,1706462066668,-886.3,0.00053424,31]
[312924551,1706462066691,-1372.4,0.00053424,31]
[312924552,1706462066714,-500.0,0.00053424,31]
[312924553,1706462066739,-390.16,0.00053424,31]
[312924554,1706462066768,-500.0,0.00053424,31]
[312924555,1706462066797,-500.0,0.00053424,31]
[312924556,1706462066821,-500.0,0.00053424,31]
[312924557,1706462066844,-500.0,0.00053424,31]
[312924558,1706462066868,-500.0,0.00053424,31]
[312924559,1706462066892,-602.66,0.00053424,31]
[312924560,1706462066916,-500.0,0.00053424,31]
[312924561,1706462066940,-500.0,0.00053424,31]
[312924562,1706462066964,-500.0,0.00053424,31]
[312924563,1706462066988,-566.54,0.00053424,31]
[312924564,1706462067011,-503.36,0.00053424,31]
[312924565,1706462067036,-500.0,0.00053424,31]
[312924566,1706462067059,-613.72,0.00053424,31]
[312924567,1706462067083,-500.0,0.00053424,31]
[312924568,1706462067106,-500.0,0.00053424,31]
[312924569,1706462067129,-500.0,0.00053424,31]
[312924570,1706462067322,-322.56,0.00053424,31]
[312924571,1706462067346,-500.0,0.00053424,31]
[312924572,1706462067371,-550.0,0.00053424,30]
[312924573,1706462067394,-500.0,0.00053424,31]
[312924574,1706462067418,-500.0,0.00053424,31]
[312924575,1706462067441,-249.46,0.00053424,31]
[312924576,1706462067466,-500.0,0.00053424,31]
[312924577,1706462067489,-500.0,0.00053424,31]
[312924578,1706462067512,-500.0,0.00053424,31]
[312924579,1706462067536,-500.0,0.00053424,31]
[312924580,1706462067559,-500.0,0.00053424,31]
[312924581,1706462067582,-500.0,0.00053424,31]
[312924582,1706462067606,-500.0,0.00053424,31]
[312924583,1706462067629,-500.0,0.00053424,31]
[312924584,1706462067654,-1197.93,0.00053424,31]
[312924585,1706462067677,-247.26,0.00053424,31]
[312924586,1706462067702,-960.3,0.00053424,31]
[312924587,1706462067726,-500.0,0.00053424,31]
[312924588,1706462067750,-500.0,0.00053424,31]
[312924589,1706462067774,-500.0,0.00053424,31]
[312924590,1706462067796,-500.0,0.00053424,31]
[312924591,1706462067820,-500.0,0.00053424,31]
[312924592,1706462067844,-500.0,0.00053424,31]
[312924593,1706462067868,-567.44,0.00053424,31]
[312924594,1706462067891,-528.63,0.00053424,31]
[312924595,1706462067915,-3414.46,0.00053424,31]
[312924596,1706462067938,-202.52696599,0.00053424,120]
[312924597,1706462067962,-500.0,0.00053424,31]
[312924598,1706462067985,-500.0,0.00053424,31]
[312924599,1706462068009,-500.0,0.00053424,31]
[312924600,1706462068032,-500.0,0.00053424,31]
[312924601,1706462068057,-500.0,0.00053424,31]
[312924602,1706462068081,-500.0,0.00053424,31]
[312924603,1706462068104,-1035.76,0.00053424,31]
[312924604,1706462068129,-500.0,0.00053424,31]
[312924605,1706462068155,-520.26,0.00053424,31]
[312924606,1706462068178,-500.0,0.00053424,31]
[312924607,1706462068203,-500.0,0.00053424,31]
[312924608,1706462068227,-500.0,0.00053424,31]
[312924609,1706462068250,-500.0,0.00053424,31]
[312924610,1706462068274,-500.0,0.00053424,31]
[312924611,1706462068298,-500.0,0.00053424,31]
[312924612,1706462068322,-765.11,0.00053424,31]
[312924613,1706462068346,-520.83,0.00053424,31]
[312924614,1706462068370,-500.0,0.00053424,31]
[312924615,1706462068393,-386.38531025,0.00053424,31]
[312924616,1706462068416,-500.0,0.00053424,31]
[312924617,1706462068440,-615.26,0.00053424,31]
[312924618,1706462068463,-500.0,0.00053424,31]
[312924619,1706462068486,-500.0,0.00053424,31]
[312924620,1706462068508,-500.0,0.00053424,31]
[312924621,1706462068533,-2420.7,0.00053424,31]
[312924622,1706462068555,-500.0,0.00053424,31]
[312924623,1706462068578,-691.34,0.00053424,31]
[312924624,1706462068600,-900.36,0.00053424,31]
[312924625,1706462068624,-586.3,0.00053424,31]
[312924626,1706462068647,-7274.65,0.00053424,31]
[312924627,1706462068671,-809.87,0.00053424,31]
[312924628,1706462068697,-500.0,0.00053424,31]
[312924629,1706462068720,-500.0,0.00053424,31]
[312924630,1706462068743,-499.34579736,0.00053427,60]
[312924631,1706462068768,-154.21763163,0.00053429,60]
[312924632,1706462068791,-154.21763163,0.00053436,60]
[312924633,1706462068814,-154.21763163,0.00053437,60]
[312924634,1706462068837,-498.39441487,0.00053441,60]
[312924635,1706462068862,-150.34028937,0.00053451,60]
[312924636,1706462068886,-906.41482736,0.00053455,51]
[312924637,1706462068909,-150.88297571,0.00053466,60]
[312924638,1706462068933,-499.34579736,0.00053472,60]
[312924639,1706462068962,-169.81050378,0.00053486,60]
[312924640,1706462068985,-498.39441487,0.00053493,60]
[312924641,1706462069008,-150.13702332,0.00053497,60]
[312924642,1706462069031,-150.34028937,0.00053501,60]
[312924643,1706462069055,-150.50894754,0.00053516,60]
[312924644,1706462069079,-499.34579736,0.00053535,60]
[312924645,1706462069105,-803597.39533224,0.00053555,31]
[312924646,1706462069130,-150.13702332,0.00053575,60]
[312924647,1706462069156,-498.39441487,0.00053592,60]
[312924648,1706462069179,-150.50894754,0.00053605,60]
[312924649,1706462069203,-150.13702332,0.00053611,60]
[312924650,1706462069228,-498.39441487,0.00053618,60]
[312924651,1706462069252,-155.46597404,0.00053625,60]
[312924652,1706462069277,-154.21763163,0.00053636,60]
[312924653,1706462069301,-499.34579736,0.00053639,60]
[312924654,1706462069325,-154.21763163,0.00053641,60]
[312924655,1706462069348,-498.39441487,0.00053641,60]
[312924656,1706462069374,-499.34579736,0.0005365,60]
[312924657,1706462069403,-154.42460598,0.0005366,60]
[312924658,1706462069430,-498.39441487,0.00053664,60]
[312924659,1706462069453,-150.13702332,0.00053669,60]
[312924660,1706462069480,-498.39441487,0.00053689,60]
[312924661,1706462069506,-500.0,0.00053698,31]
[312924662,1706462069535,-500.0,0.00053698,31]
[312924663,1706462069560,-500.0,0.00053698,31]
[312924664,1706462069584,-268.88,0.00053698,31]
[312924665,1706462069609,-500.0,0.00053698,31]
[312924666,1706462069633,-500.0,0.00053698,31]
[312924667,1706462069657,-377.74,0.00053698,31]
[312924668,1706462069680,-411.41,0.00053698,31]
[312924669,1706462069705,-595.62,0.00053698,31]
[312924670,1706462069728,-726.11,0.00053698,31]
[312924671,1706462069752,-500.0,0.00053698,31]
[312924672,1706462069778,-625.42,0.00053698,31]
[312924673,1706462069802,-263.94936403,0.00053698,31]
[312924674,1706462069961,-250.34,0.00053698,31]
[312924675,1706462069985,-537.89,0.00053698,31]
[312924676,1706462070009,-500.0,0.00053698,31]
[312924677,1706462070031,-537.79735689,0.00053698,31]
[312924678,1706462070055,-500.0,0.00053698,31]
[312924679,1706462070077,-1530.49,0.00053698,31]
[312924680,1706462070102,-727.36,0.00053698,31]
[312924681,1706462070123,-500.0,0.00053698,31]
[312924682,1706462070146,-1705.74,0.00053698,31]
[312924683,1706462070169,-500.0,0.00053698,31]
[312924684,1706462070191,-500.0,0.00053698,31]
[312924685,1706462070215,-500.0,0.00053698,31]
[312924686,1706462070238,-500.0,0.00053698,31]
[312924687,1706462070262,-556.29,0.00053698,31]
[312924688,1706462070285,-500.0,0.00053698,31]
[312924689,1706462070309,-774.07,0.00053698,31]
[312924690,1706462070332,-500.0,0.00053698,31]
[312924691,1706462070355,-500.0,0.00053698,31]
[312924692,1706462070378,-752.54,0.00053698,31]
[312924693,1706462070402,-500.0,0.00053698,31]
[312924694,1706462070424,-500.0,0.00053698,31]
[312924695,1706462070452,-623.18,0.00053698,31]
[312924696,1706462070475,-500.0,0.00053698,31]
[312924697,1706462070497,-500.0,0.00053698,31]
[312924698,1706462070521,-500.0,0.00053698,31]
[312924699,1706462070548,-154.93427217,0.00053698,31]
[312924700,1706462070573,-500.0,0.00053698,31]
[312924701,1706462070597,-886.3,0.00053698,31]
[312924702,1706462070621,-1372.4,0.00053698,31]
[312924703,1706462070644,-500.0,0.00053698,31]
[312924704,1706462070667,-500.0,0.00053698,31]
[312924705,1706462070690,-500.0,0.00053698,31]
[312924706,1706462070714,-500.0,0.00053698,31]
[312924707,1706462070737,-500.0,0.00053698,31]
[312924708,1706462070761,-500.0,0.00053698,31]
[312924709,1706462070784,-602.66,0.00053698,31]
[312924710,1706462070809,-500.0,0.00053698,31]
[312924711,1706462070832,-500.0,0.00053698,31]
[312924712,1706462070855,-500.0,0.00053698,31]
[312924713,1706462070879,-566.54,0.00053698,31]
[312924714,1706462070908,-503.36,0.00053698,31]
[312924715,1706462070931,-500.0,0.00053698,31]
[312924716,1706462070955,-613.72,0.00053698,31]
[312924717,1706462070979,-500.0,0.00053698,31]
[312924718,1706462071002,-500.0,0.00053698,31]
[312924719,1706462071026,-500.0,0.00053698,31]
[312924720,1706462071050,-500.0,0.00053698,31]
[312924721,1706462071248,-550.0,0.00053698,30]
[312924722,1706462071277,-500.0,0.00053698,31]
[312924723,1706462071303,-500.0,0.00053698,31]
[312924724,1706462071331,-500.0,0.00053698,31]
[312924725,1706462071360,-500.0,0.00053698,31]
[312924726,1706462071383,-307.76,0.00053698,31]
[312924727,1706462071406,-500.0,0.00053698,31]
[312924728,1706462071429,-500.0,0.00053698,31]
[312924729,1706462071455,-500.0,0.00053698,31]
[312924730,1706462071478,-500.0,0.00053698,31]
[312924731,1706462071501,-500.0,0.00053698,31]
[312924732,1706462071525,-1197.93,0.00053698,31]
[312924733,1706462071551,-960.3,0.00053698,31]
[312924734,1706462071576,-500.0,0.00053698,31]
[312924735,1706462071599,-500.0,0.00053698,31]
[312924736,1706462071626,-500.0,0.00053698,31]
[312924737,1706462071651,-500.0,0.00053698,31]
[312924738,1706462071675,-500.0,0.00053698,31]
[312924739,1706462071699,-500.0,0.00053698,31]
[312924740,1706462071722,-567.44,0.00053698,31]
[312924741,1706462071747,-528.63,0.00053698,31]
[312924742,1706462071773,-3414.46,0.00053698,31]
[312924743,1706462071798,-500.0,0.00053698,31]
[312924744,1706462071823,-500.0,0.00053698,31]
[312924745,1706462071847,-500.0,0.00053698,31]
[312924746,1706462071874,-267.16614738,0.00053698,31]
[312924747,1706462071899,-500.0,0.00053698,31]
[312924748,1706462071922,-500.0,0.00053698,31]
[312924749,1706462071947,-1035.76,0.00053698,31]
[312924750,1706462071972,-500.0,0.00053698,31]
[312924751,1706462071995,-520.26,0.00053698,31]
[312924752,1706462072018,-647.22,0.00053698,31]
[312924753,1706462072042,-500.0,0.00053698,31]
[312924754,1706462072069,-500.0,0.00053698,31]
[312924755,1706462072092,-500.0,0.00053698,31]
[312924756,1706462072115,-500.0,0.00053698,31]
[312924757,1706462072138,-500.0,0.00053698,31]
[312924758,1706462072159,-765.11,0.00053698,31]
[312924759,1706462072186,-520.83,0.00053698,31]
[312924760,1706462072208,-500.0,0.00053698,31]
[312924761,1706462072231,-500.0,0.00053698,31]
[312924762,1706462072254,-615.26,0.00053698,31]
[312924763,1706462072280,-500.0,0.00053698,31]
[312924764,1706462072302,-500.0,0.00053698,31]
[312924765,1706462072325,-500.0,0.00053698,31]
[312924766,1706462072348,-2420.7,0.00053698,31]
[312924767,1706462072370,-500.0,0.00053698,31]
[312924768,1706462072393,-691.34,0.00053698,31]
[312924769,1706462072415,-900.36,0.00053698,31]
[312924770,1706462072440,-586.3,0.00053698,31]
[312924771,1706462072463,-7274.65,0.00053698,31]
[312924772,1706462072485,-809.87,0.00053698,31]
[312924773,1706462072508,-500.0,0.00053698,31]
[312924774,1706462072740,-500.0,0.00053698,31]
[312924775,1706462072765,-154.21763163,0.00053716,60]
[312924776,1706462072789,-498.39441487,0.00053733,60]
[312924777,1706462072813,-157.72167215,0.00053742,60]
[312924778,1706462072970,-150.13702332,0.00053762,60]
[312924779,1706462072994,-499.34579736,0.00053771,60]
[312924780,1706462073017,-150.50894754,0.00053773,60]
[312924781,1706462073040,-498.39441487,0.0005378,60]
[312924782,1706462073063,-152.82946366,0.00053783,60]
[312924783,1706462073090,-154.21763163,0.00053807,60]
[312924784,1706462073119,-906.41482732,0.00053816,52]
[312924785,1706462073144,-155.10176526,0.00053835,60]
[312924786,1706462073167,-150.13702332,0.00053847,60]
[312924787,1706462073191,-499.34579736,0.00053851,60]
[312924788,1706462073218,-499.34579736,0.00053852,60]
[312924789,1706462073242,-499.34579736,0.00053854,60]
[312924790,1706462073267,-150.34028937,0.00053857,60]
[312924791,1706462073291,-499.34579736,0.00053882,60]
[312924792,1706462073316,-150.34028937,0.00053897,60]
[312924793,1706462073340,-499.34579736,0.000539,60]
[312924794,1706462073364,-155.46597404,0.00053923,60]
[312924795,1706462073387,-498.39441487,0.00053942,60]
[312924796,1706462073413,-152.72059372,0.00053944,59]
[312924797,1706462073436,-150.88297571,0.00053954,60]
[312924798,1706462073460,-585.26,0.00053972,31]
[312924799,1706462073484,-391.13,0.00053972,31]
[312924800,1706462073507,-500.0,0.00053972,31]
[312924801,1706462073533,-500.0,0.00053972,31]
[312924802,1706462073559,-500.0,0.00053972,31]
[312924803,1706462073581,-726.11,0.00053972,31]
[312924804,1706462073604,-500.0,0.00053972,31]
[312924805,1706462073629,-537.89,0.00053972,31]
[312924806,1706462073651,-500.0,0.00053972,31]
[312924807,1706462073675,-500.0,0.00053972,31]
[312924808,1706462073699,-1530.49,0.00053972,31]
[312924809,1706462073725,-727.36,0.00053972,31]
[312924810,1706462073750,-500.0,0.00053972,31]
[312924811,1706462073773,-1705.74,0.00053972,31]
[312924812,1706462073797,-500.0,0.00053972,31]
[312924813,1706462073819,-500.0,0.00053972,31]
[312924814,1706462073843,-500.0,0.00053972,31]
[312924815,1706462073866,-500.0,0.00053972,31]
[312924816,1706462073890,-556.29,0.00053972,31]
[312924817,1706462073915,-500.0,0.00053972,31]
[312924818,1706462073940,-774.07,0.00053972,31]
[312924819,1706462073966,-396.01,0.00053972,31]
[312924820,1706462073989,-500.0,0.00053972,31]